fUST/lending_fUST_20251112
["ID","MTS","AMOUNT","RATE_DAILY","PERIOD"]
[393706158,1762937438505,-769.0,0.00016482,2]
[393706160,1762937438514,-500.0,0.00016515,2]
[393706162,1762937438524,-151.0,0.00016515,2]
[393706164,1762937438534,-151.01802032,0.00016515,2]
[393706166,1762937438545,-151.30767397,0.00016515,2]
[393706168,1762937438555,-580.09551984,0.00016521,2]
[393706170,1762937438564,-1000.0,0.00016521,2]
[393706172,1762937438577,-1000.0,0.00016521,2]
[393706174,1762937438587,-1000.0,0.00016521,2]
[393706176,1762937438596,-1000.0,0.00016521,2]
[393706178,1762937438606,-1000.0,0.00016521,2]
[393706180,1762937438618,-1000.0,0.00016521,2]
[393706182,1762937438627,-1000.0,0.00016521,2]
[393706184,1762937438638,-1000.0,0.00016521,2]
[393706186,1762937438647,-1000.0,0.00016521,2]
[393706188,1762937438659,-769.0,0.00016537,2]
[393706190,1762937438669,-500.0,0.0001657,2]
[393706192,1762937438679,-500.0,0.00016573,2]
[393706194,1762937438690,-500.0,0.00016573,2]
[393706196,1762937438700,-500.0,0.00016573,2]
[393706198,1762937438710,-500.0,0.00016573,2]
[393706200,1762937438719,-500.0,0.00016573,2]
[393706202,1762937438730,-769.0,0.00016592,2]
[393706204,1762937438739,-600.0,0.00016603,2]
[393706206,1762937438749,-500.0,0.00016625,2]
[393706208,1762937438759,-769.0,0.00016647,2]
[393706210,1762937438768,-500.0,0.00016679,2]
[393706212,1762937438778,-769.0,0.00016701,2]
[393706214,1762937438788,-2000.0,0.00016716,2]
[393706216,1762937438798,-2000.0,0.00016716,2]
[393706218,1762937438808,-2000.0,0.00016716,2]
[393706220,1762937438817,-2000.0,0.00016716,2]
[393706222,1762937438827,-2000.0,0.00016716,2]
[393706224,1762937438837,-1369.34854681,0.00016716,2]
[393706226,1762937438846,-500.0,0.00016734,2]
[393706228,1762937438856,-1500.0,0.00016739,2]
[393706230,1762937438866,-769.0,0.00016756,2]
[393706232,1762937438876,-500.0,0.00016787,2]
[393706234,1762937438886,-1500.0,0.00016789,2]
[393706236,1762937438896,-314.90339545,0.00016789,2]
[393706238,1762937438905,-769.0,0.00016811,2]
[393706239,1762937438915,-769.0,0.00016866,2]
[393706241,1762937438924,-500.0,0.00016887,2]
[393706243,1762937438934,-500.0,0.00016887,2]
[393706245,1762937438943,-500.0,0.00016887,2]
[393706247,1762937438952,-500.0,0.00016887,2]
[393706249,1762937438962,-500.0,0.00016887,2]
[393706251,1762937438972,-769.0,0.00016921,2]
[393706253,1762937438982,-3669.04580839,0.00016938,2]
[393706255,1762937438992,-5223.56123975,0.00016966,2]
[393706257,1762937439002,-23075.5579968,0.00016968,2]
[393706259,1762937439012,-1184.92834815,0.00016968,2]
[393706261,1762937439021,-1500.0,0.00016968,2]
[393706263,1762937439031,-500.0,0.00016973,2]
[393706265,1762937439041,-502.43931167,0.00016973,2]
[393706267,1762937439051,-500.0,0.00016973,2]
[393706269,1762937439061,-500.0,0.00016973,2]
[393706271,1762937439071,-500.81983786,0.00016973,2]
[393706272,1762937439081,-151.0,0.00016973,2]
[393706274,1762937439092,-769.0,0.00016975,2]
[393706276,1762937439102,-263.898658,0.0001699,2]
[393706278,1762937439111,-769.0,0.0001703,2]
[393706280,1762937439121,-1500.0,0.00017068,2]
[393706282,1762937439131,-507.42107441,0.00017068,2]
[393706284,1762937439142,-1090.4579137,0.00017068,2]
[393706285,1762937439151,-1500.0,0.00017068,2]
[393706287,1762937439161,-1500.0,0.00017068,2]
[393706289,1762937439171,-1500.0,0.00017068,2]
[393706291,1762937439181,-1500.0,0.00017068,2]
[393706293,1762937439191,-527.69603334,0.00017068,2]
[393706295,1762937439201,-1500.0,0.00017068,2]
[393706297,1762937439211,-769.0,0.00017085,2]
[393706299,1762937439221,-5223.56123975,0.00017119,2]
[393706309,1762937439315,-526.11893943,0.00017121,2]
[393706462,1762937440814,-3e-08,0.0001685,2]
[393710333,1762937731811,41680.33511,0.00014087,2]
[393710334,1762937779344,2181.3,0.0001465,2]
[393710335,1762937782127,202.4859688,0.00037627,60]
[393710336,1762937852905,211.7491274,0.00013922,2]
[393710337,1762937904694,15003.3070237,0.00013975,2]
[393710338,1762937981964,999.0,0.00013941,2]
[393710339,1762938162572,3017.09203967,0.00037628,120]
[393710341,1762938268166,2000.0,0.00037628,30]
[393710342,1762938450297,323.94788475,0.00014032,2]
[393710343,1762938452464,1295.791539,0.00014032,2]
[393710344,1762938455145,573.65771258,0.00014261,2]
[393710345,1762938457048,1032.58388264,0.00014261,2]
[393710346,1762938459167,1833.86897557,0.00014261,2]
[393710379,1762938631740,-632.25671738,0.00014769,2]
[393710380,1762938631749,-150.0,0.0001477,2]
[393710381,1762938631758,-188.08945649,0.0001477,2]
[393710382,1762938631767,-752.35782594,0.0001477,2]
[393710383,1762938631776,-263.0,0.00014915,2]
[393710384,1762938631785,-1200.0,0.00014915,2]
[393710385,1762938631794,-300.0,0.00014915,2]
[393710386,1762938631804,-300.0,0.00014915,2]
[393710387,1762938631813,-500.0,0.00014916,2]
[393710388,1762938631823,-500.0,0.00014916,2]
[393710389,1762938631832,-400.3688653,0.00014916,2]
[393710390,1762938631841,-157.00600241,0.00014916,2]
[393710391,1762938631850,-500.0,0.00014916,2]
[393710392,1762938631859,-500.0,0.00014916,2]
[393710393,1762938631869,-500.0,0.00014916,2]
[393710394,1762938631878,-500.0,0.00014916,2]
[393710395,1762938631887,-500.0,0.00014916,2]
[393710396,1762938631896,-500.0,0.00014916,2]
[393710397,1762938631906,-500.0,0.00014916,2]
[393710398,1762938631915,-500.0,0.00014916,2]
[393710399,1762938631925,-500.0,0.00014916,2]
[393710400,1762938631934,-500.0,0.00014916,2]
[393710401,1762938631943,-500.0,0.00014916,2]
[393710402,1762938631952,-500.0,0.00014916,2]
[393710403,1762938631961,-500.0,0.00014916,2]
[393710404,1762938631972,-500.0,0.00014916,2]
[393710405,1762938631981,-500.0,0.00014916,2]
[393710406,1762938631991,-500.0,0.00014916,2]
[393710407,1762938632000,-500.0,0.00014916,2]
[393710408,1762938632009,-500.0,0.00014916,2]
[393710409,1762938632018,-500.0,0.00014916,2]
[393710410,1762938632027,-500.0,0.00014916,2]
[393710411,1762938632036,-500.0,0.00014916,2]
[393710412,1762938632046,-500.0,0.00014916,2]
[393710413,1762938632055,-500.0,0.00014916,2]
[393710414,1762938632064,-448.68134376,0.00014916,2]
[393710415,1762938632073,-500.0,0.00014916,2]
[393710416,1762938632082,-500.0,0.00014916,2]
[393710417,1762938632092,-500.0,0.00014916,2]
[393710418,1762938632105,-500.0,0.00014916,2]
[393710419,1762938632114,-500.0,0.00014916,2]
[393710420,1762938632123,-500.0,0.00014916,2]
[393710421,1762938632132,-500.0,0.00014916,2]
[393710422,1762938632142,-500.0,0.00014916,2]
[393710423,1762938632151,-500.0,0.00014916,2]
[393710424,1762938632160,-500.0,0.00014916,2]
[393710425,1762938632169,-500.0,0.00014916,2]
[393710426,1762938632179,-500.0,0.00014916,2]
[393710427,1762938632188,-500.0,0.00014916,2]
[393710428,1762938632197,-500.0,0.00014916,2]
[393710429,1762938632206,-500.0,0.00014916,2]
[393710430,1762938632216,-500.0,0.00014916,2]
[393710431,1762938632225,-500.0,0.00014916,2]
[393710432,1762938632234,-500.0,0.00014916,2]
[393710433,1762938632244,-1200.0,0.00014916,2]
[393710434,1762938632253,-24677.93209388,0.00014917,2]
[393710435,1762938632267,-1543.85592506,0.00014917,2]
[393710454,1762938637555,-521.7,0.00014917,2]
[393710460,1762938637611,-2045.09405275,0.00014917,2]
[393710467,1762938637665,-3967.74,0.00014917,2]
[393710512,1762938642502,713.73231256,0.00014261,2]
[393710518,1762938642896,-2226.3810452,0.00014917,2]
[393710519,1762938642906,-500.0,0.0001492,2]
[393710520,1762938642916,-500.0,0.0001492,2]
[393710521,1762938642926,-413.2671616,0.00014921,2]
[393710522,1762938644699,1283.43344444,0.00014261,2]
[393710546,1762938646192,-239.34694764,0.00014915,2]
[393710547,1762938646205,-500.0,0.00014915,2]
[393710548,1762938646215,-169.01305236,0.00014915,2]
[393710549,1762938646462,-330.98694764,0.00014915,2]
[393710550,1762938646472,-500.0,0.00014915,2]
[393710551,1762938646481,-500.0,0.00014915,2]
[393710552,1762938646491,-500.0,0.00014915,2]
[393710553,1762938646501,-180.0,0.00014915,2]
[393710554,1762938646512,-500.0,0.00014915,2]
[393710555,1762938646521,-386.61831416,0.00014915,2]
[393710557,1762938937224,335.22049478,0.00014261,2]
[393710559,1762939060023,365.97489711,0.00017398,3]
[393710560,1762939099824,3972.37228778,0.0001461,2]
[393710561,1762939306630,-337.0,0.00021671,14]
[393710562,1762939311134,-3747.11061283,0.00014561,2]
[393710563,1762939315148,359.564649,0.00013699,2]
[393710566,1762939342576,-4167.86797931,0.00014585,2]
[393710567,1762939380020,316.1,0.00032877,120]
[393710568,1762939546523,-3646.88448187,0.00014585,2]
[393710570,1762939625374,524.895,0.00037624,90]
[393710576,1762939709760,3878.56417005,0.00032,120]
[393710578,1762939767213,-3191.02392161,0.00014585,2]
[393710629,1762939832018,-300.0,0.000146,2]
[393710631,1762939832038,-182.42,0.000146,2]
[393710636,1762939832070,-117.58,0.000146,2]
[393710638,1762939832079,-882.42,0.000146,2]
[393710734,1762939837737,-286.0,0.000146,2]
[393710740,1762939837791,-270.09694,0.000146,2]
[393710742,1762939837800,-150.0,0.00014603,2]
[393710744,1762939837809,-103.90306,0.00014607,2]
[393710747,1762939837824,-185.09694,0.00014607,2]
[393710749,1762939837834,-339.77775203,0.00014608,2]
[393710798,1762939840074,-860.22224797,0.00014608,2]
[393710799,1762939840084,-300.0,0.00014608,2]
[393710800,1762939840093,-1200.0,0.00014608,2]
[393710801,1762939840103,-500.0,0.00014609,2]
[393710802,1762939840113,-500.0,0.00014609,2]
[393710803,1762939840124,-415.70060024,0.00014609,2]
[393710804,1762939840133,-138.08513584,0.00014609,2]
[393710805,1762939840145,-361.91486416,0.00014609,2]
[393710806,1762939840155,-89.68135178,0.00014609,2]
[393710818,1762939842982,-410.31864822,0.00014609,2]
[393710820,1762939842991,-500.0,0.00014609,2]
[393710821,1762939843000,-484.91165163,0.00014609,2]
[393710823,1762939843010,-500.0,0.00014609,2]
[393710825,1762939843019,-500.0,0.00014609,2]
[393710827,1762939843028,-500.0,0.00014609,2]
[393710829,1762939843038,-103.18229681,0.00014609,2]
[393711148,1762939846330,-396.81770319,0.00014609,2]
[393711150,1762939846340,-500.0,0.00014609,2]
[393711152,1762939846349,-500.0,0.00014609,2]
[393711154,1762939846361,-2147.57241384,0.0001461,2]
[393712818,1762940051154,1000.0,0.00013787,2]
[393712820,1762940151920,-212.72601309,0.00014509,2]
[393712821,1762940151940,-824.0,0.00014609,2]
[393712822,1762940151963,-118.31572142,0.00014609,2]
[393712823,1762940153966,-181.68427858,0.00014609,2]
[393712824,1762940153986,-118.31572142,0.00014609,2]
[393712825,1762940156864,-181.68427858,0.00014609,2]
[393712826,1762940156885,-18.31572142,0.00014609,2]
[393712827,1762940159538,-281.68427858,0.00014609,2]
[393712828,1762940159560,-96.91986526,0.00014609,2]
[393712829,1762940161585,-330.8457417,0.00014609,2]
[393712832,1762940301363,-152.14,0.00014609,2]
[393712836,1762940456621,950.52580366,0.00017542,3]
[393712838,1762940532943,188.0,0.00037623,20]
[393712839,1762940566104,31683.05250771,0.0003287,120]
[393712840,1762940581185,1462.43568884,0.00017538,3]
[393712841,1762940599619,-3747.11061283,0.00014322,2]
[393712844,1762940796262,-588.96961433,0.00014521,2]
[393712909,1762941032082,-433.95737477,0.00014521,2]
[393712911,1762941032092,-150.0,0.00014565,2]
[393712912,1762941032101,-300.0,0.00014609,2]
[393712914,1762941032110,-300.0,0.00014609,2]
[393712916,1762941032119,-214.21922257,0.00014609,2]
[393712919,1762941032135,-85.78077743,0.00014609,2]
[393712921,1762941032144,-1200.0,0.00014609,2]
[393712923,1762941032153,-300.0,0.00014609,2]
[393712924,1762941032164,-500.0,0.0001461,2]
[393712926,1762941032173,-198.40332846,0.0001461,2]
[393712927,1762941032182,-500.0,0.0001461,2]
[393712929,1762941032191,-22108.94297878,0.0001461,2]
[393712931,1762941032200,-3120.4940676,0.00014637,2]
[393712933,1762941032209,-805.619743,0.00014685,2]
[393712935,1762941032218,-21180.87175673,0.00014685,2]
[393713032,1762941040383,-3e-08,0.00014685,2]
[393713040,1762941043338,-8126.41739416,0.00014685,2]
[393713041,1762941043392,-2815.20311104,0.00014685,2]
[393713065,1762941075290,2505.78877434,0.00014181,2]
[393713066,1762941075313,591.66537556,0.00014181,2]
[393713067,1762941094921,3747.11061283,0.000143,2]
[393713068,1762941096314,-637.29592359,0.00014486,2]
[393713069,1762941099369,-266.334832,0.00014486,2]
[393713070,1762941101579,-500.0,0.00014486,2]
[393713071,1762941107853,-669.1542583,0.00014486,2]
[393713073,1762941126427,-219.0,0.00014386,2]
[393713076,1762941303972,219.0,0.00014286,2]
[393713077,1762941329509,4239.80335419,0.00036014,120]
[393713078,1762941410747,189.36,0.0001432,2]
[393713079,1762941419363,809.04,0.00014322,2]
[393713080,1762941483210,381.13379292,0.00013668,2]
[393713086,1762941588868,2248.44294828,0.00014298,2]
[393713087,1762941588896,1814.25727041,0.00014292,2]
[393713088,1762941588917,1932.85334242,0.00014292,2]
[393713089,1762941680182,551.52198557,0.00018023,3]
[393713092,1762941822259,396.15454111,0.00018023,3]
[393713093,1762941824721,1584.61816443,0.00018045,3]
[393713094,1762941827272,3565.39086997,0.00018066,3]
[393713096,1762941960481,381.03141221,0.0001417,2]
[393713097,1762941963814,685.85654198,0.0001417,2]
[393713098,1762941966997,1219.30051908,0.0001417,2]
[393713099,1762941981797,2203.88185433,0.00017807,3]
[393713100,1762942086735,732.63767099,0.0001417,2]
[393713101,1762942089655,1318.74780779,0.0001417,2]
[393713102,1762942092609,2344.44054718,0.0001417,2]
[393713103,1762942096145,1385.14215835,0.00014266,2]
[393713104,1762942096166,2361.96845448,0.00014266,2]
[393713105,1762942117275,6332.13418507,0.00017807,3]
[393713109,1762942189459,552.83732,0.00013699,2]
[393713110,1762942203747,1376.4890903,0.00014286,2]
[393713150,1762942232244,-208.50664749,0.00014386,2]
[393713152,1762942232254,-2248.44294828,0.00014503,2]
[393713154,1762942232263,-1200.0,0.00014522,2]
[393713156,1762942232272,-1258.0073346,0.00014523,2]
[393713158,1762942232281,-300.0,0.00014621,2]
[393713160,1762942232290,-1200.0,0.00014621,2]
[393713162,1762942232299,-300.0,0.00014621,2]
[393713163,1762942232308,-180.18550358,0.00014622,2]
[393713164,1762942232317,-500.0,0.00014622,2]
[393713165,1762942232326,-157.30006669,0.00014622,2]
[393713167,1762942232335,-1514.58878183,0.00014623,2]
[393713168,1762942232347,-476.52,0.00014623,2]
[393713220,1762942240403,-0.00396657,0.00014623,2]
[393713418,1762942247671,-97007.0849152,0.00014623,2]
[393713419,1762942247681,-1255.0492841,0.00014623,2]
[393713420,1762942247691,-160.803531,0.00014623,2]
[393713421,1762942247700,-160.803531,0.00014623,2]
[393713422,1762942247709,-160.803531,0.00014623,2]
[393713423,1762942247719,-160.803531,0.00014623,2]
[393713424,1762942247728,-3415.94508648,0.00014958,2]
[393713425,1762942247737,-500.0,0.00014999,2]
[393713426,1762942247746,-206.14082764,0.00014999,2]
[393713427,1762942247755,-2899.96708278,0.00015,2]
[393713428,1762942247764,-160.0,0.00015,2]
[393713429,1762942247773,-6778.50736241,0.00015,2]
[393713430,1762942247782,-170.287233,0.00015068,2]
[393713431,1762942247791,-315.59614605,0.00015068,2]
[393713432,1762942247799,-300.0,0.00015222,2]
[393713433,1762942247809,-300.0,0.00015222,2]
[393713434,1762942247817,-300.0,0.00015222,2]
[393713435,1762942247826,-300.0,0.00015222,2]
[393713436,1762942247836,-300.0,0.00015222,2]
[393713437,1762942247847,-300.0,0.00015222,2]
[393713438,1762942247856,-300.0,0.00015222,2]
[393713439,1762942247866,-300.0,0.00015222,2]
[393713440,1762942247875,-300.0,0.00015222,2]
[393713441,1762942247884,-300.0,0.00015222,2]
[393713442,1762942247893,-300.0,0.00015222,2]
[393713443,1762942247903,-300.0,0.00015222,2]
[393713444,1762942247912,-300.0,0.00015222,2]
[393713445,1762942247921,-300.0,0.00015222,2]
[393713446,1762942247930,-300.0,0.00015222,2]
[393713447,1762942247939,-600.0,0.00015222,2]
[393713448,1762942247947,-5469.57,0.00015222,2]
[393713449,1762942247956,-160.803531,0.00015222,2]
[393713450,1762942247965,-160.803531,0.00015222,2]
[393713451,1762942247974,-160.803531,0.00015222,2]
[393713452,1762942247983,-160.803531,0.00015222,2]
[393713453,1762942247991,-160.803531,0.00015222,2]
[393713454,1762942248000,-160.803531,0.00015222,2]
[393713455,1762942248010,-160.803531,0.00015222,2]
[393713456,1762942248019,-160.803531,0.00015222,2]
[393713457,1762942248028,-228.16824617,0.00015353,2]
[393713458,1762942248037,-427.84625223,0.00015439,2]
[393713459,1762942248049,-500.0,0.00015439,2]
[393713460,1762942248058,-500.0,0.00015439,2]
[393713461,1762942248067,-500.0,0.00015439,2]
[393713462,1762942248077,-500.0,0.00015439,2]
[393713463,1762942248086,-500.0,0.00015439,2]
[393713464,1762942248095,-500.0,0.00015439,2]
[393713465,1762942248104,-448.05593587,0.00015447,2]
[393713466,1762942248113,-500.0,0.00015447,2]
[393713467,1762942248122,-500.0,0.00015447,2]
[393713468,1762942248131,-500.0,0.00015447,2]
[393713469,1762942248140,-500.0,0.00015447,2]
[393713470,1762942248149,-500.0,0.00015463,2]
[393713471,1762942248158,-500.0,0.00015463,2]
[393713472,1762942248167,-196.30762307,0.00015468,2]
[393713473,1762942248176,-500.0,0.00015468,2]
[393713474,1762942248185,-500.0,0.00015483,2]
[393713475,1762942248195,-160.803531,0.00015484,2]
[393713476,1762942248203,-160.803531,0.00015484,2]
[393713477,1762942248212,-160.803531,0.00015484,2]
[393713478,1762942248221,-160.803531,0.00015484,2]
[393713479,1762942248231,-195.91,0.00015485,2]
[393713480,1762942248241,-195.91,0.00015485,2]
[393713481,1762942248250,-195.91,0.00015485,2]
[393713482,1762942248259,-500.0,0.00015494,2]
[393713483,1762942248269,-504.76898142,0.00015494,2]
[393713484,1762942248278,-500.0,0.00015523,2]
[393713485,1762942248287,-500.0,0.00015525,2]
[393713486,1762942248296,-500.0,0.00015525,2]
[393713487,1762942248305,-500.0,0.00015525,2]
[393713488,1762942248314,-500.0,0.00015548,2]
[393713489,1762942248323,-174.27,0.00015548,2]
[393713490,1762942248332,-174.27,0.00015548,2]
[393713491,1762942248342,-174.27,0.00015548,2]
[393713492,1762942248351,-174.27,0.00015548,2]
[393713493,1762942248360,-174.23,0.00015548,2]
[393713494,1762942248370,-500.0,0.00015578,2]
[393713495,1762942248380,-500.0,0.00015632,2]
[393713496,1762942248389,-327.48371257,0.00015687,2]
[393713497,1762942248398,-1258.00733458,0.00015907,2]
[393713498,1762942248407,-231.20549755,0.00015987,2]
[393713499,1762942248416,-1000.0,0.00015987,2]
[393713500,1762942248425,-1000.0,0.00015987,2]
[393713501,1762942248434,-1000.0,0.00015987,2]
[393713502,1762942248443,-1000.0,0.00015995,2]
[393713503,1762942248452,-1000.0,0.00015995,2]
[393713504,1762942248462,-663.05349914,0.00015995,2]
[393713505,1762942248471,-510.08784499,0.00015995,2]
[393713506,1762942248480,-160.803531,0.00015995,2]
[393713507,1762942248489,-160.803531,0.00015995,2]
[393713508,1762942248498,-160.803531,0.00015995,2]
[393713509,1762942248507,-160.803527,0.00015995,2]
[393713510,1762942248517,-420.0,0.00016008,2]
[393713511,1762942248527,-1000.0,0.0001601,2]
[393713512,1762942248536,-157.72056193,0.00016042,2]
[393713513,1762942248545,-220.19485152,0.00016073,2]
[393713514,1762942248555,-1000.0,0.00016073,2]
[393713515,1762942248564,-380.12245353,0.00016073,2]
[393713516,1762942248574,-1680.0,0.00016083,2]
[393713517,1762942248583,-1255.0492841,0.00016146,2]
[393713518,1762942248592,-500.18622991,0.00016306,2]
[393713519,1762942248602,-4446.05810597,0.00016307,2]
[393713520,1762942248611,-246.03784404,0.00016386,2]
[393713521,1762942248620,-485.45562133,0.00016438,2]
[393713522,1762942248628,-500.0,0.00016472,2]
[393713523,1762942248637,-1500.0,0.00016535,2]
[393713524,1762942248647,-1500.0,0.00016535,2]
[393713525,1762942248656,-1500.0,0.00016535,2]
[393713526,1762942248665,-1091.19231554,0.00016543,2]
[393713527,1762942248675,-922.85456824,0.00016543,2]
[393713528,1762942248686,-1500.0,0.00016558,2]
[393713529,1762942248696,-500.0,0.00016595,2]
[393713530,1762942248705,-500.0,0.00016605,2]
[393713531,1762942248714,-500.0,0.00016605,2]
[393713532,1762942248724,-500.0,0.00016605,2]
[393713533,1762942248734,-1500.0,0.00016621,2]
[393713534,1762942248744,-491.85907738,0.00016648,2]
[393713535,1762942248753,-500.0,0.00016652,2]
[393713536,1762942248762,-500.0,0.00016709,2]
[393713537,1762942248771,-500.0,0.00016709,2]
[393713538,1762942248780,-720.0,0.00016745,2]
[393713539,1762942248789,-4446.05810597,0.00016789,2]
[393713540,1762942248799,-226.84631026,0.00016802,2]
[393713541,1762942248809,-511.57981381,0.00016867,2]
[393713542,1762942248818,-907.38524102,0.00016886,2]
[393713543,1762942248827,-920.84366487,0.00016897,2]
[393713544,1762942248837,-1637.0554042,0.00016928,2]
[393713545,1762942248846,-2557.89906907,0.00016959,2]
[393713546,1762942248855,-2041.6167923,0.00016971,2]
[393713547,1762942248865,-3683.37465946,0.0001699,2]
[393713548,1762942248874,-5013.48217538,0.0001702,2]
[393713549,1762942248883,-1000.0,0.0001702,2]
[393713550,1762942248893,-500.0,0.00017044,2]
[393713551,1762942248902,-6548.22161682,0.0001705,2]
[393713552,1762942248912,-3629.54096409,0.00017055,2]
[393713553,1762942248921,-8287.59298379,0.00017081,2]
[393713554,1762942248931,-2000.0,0.00017083,2]
[393713555,1762942248941,-221.156831,0.00017083,2]
[393713556,1762942248951,-1222.10731625,0.00017083,2]
[393713557,1762942248961,-2000.0,0.00017106,2]
[393713558,1762942248970,-1000.0,0.00017152,2]
[393713559,1762942248980,-1000.0,0.00017152,2]
[393713560,1762942248990,-1000.0,0.00017152,2]
[393713561,1762942248999,-171.16518361,0.00017169,2]
[393713562,1762942249006,-984.03337781,0.000172,2]
[393713563,1762942249013,-1000.0,0.00017257,2]
[393713564,1762942249021,-4446.05810597,0.0001727,2]
[393713565,1762942249028,-310.0,0.00017286,2]
[393713566,1762942249036,-1258.00733458,0.00017291,2]
[393713567,1762942249048,-383.0,0.00017488,2]
[393713568,1762942249056,-587.0,0.00017527,2]
[393713569,1762942249065,-1500.0,0.00017568,2]
[393713570,1762942249073,-505.5621592,0.00017592,2]
[393713571,1762942249081,-2121.77482838,0.000176,2]
[393713572,1762942249091,-2500.0,0.00017631,2]
[393713573,1762942249098,-2582.26884545,0.00017654,2]
[393713574,1762942249105,-1255.0492841,0.00017669,2]
[393713575,1762942249114,-2351.0,0.00017691,2]
[393713576,1762942249123,-1500.0,0.000177,2]
[393713577,1762942249131,-1500.0,0.000177,2]
[393713578,1762942249137,-213.236384,0.000177,2]
[393713579,1762942249145,-4446.05810597,0.00017752,2]
[393713580,1762942249153,-1500.0,0.00017805,2]
[393713581,1762942249160,-160.0,0.00017909,2]
[393713582,1762942249167,-22089.483699,0.00017933,2]
[393713583,1762942249174,-151.0,0.00017937,2]
[393713584,1762942249181,-151.0,0.00017937,2]
[393713585,1762942249188,-166.0,0.00017937,2]
[393713586,1762942249195,-166.0,0.00017937,2]
[393713587,1762942249201,-172.0,0.00017937,2]
[393713588,1762942249208,-617.96000574,0.00017973,2]
[393713589,1762942249214,-500.0,0.00017973,2]
[393713590,1762942249221,-167.8613438,0.00017973,2]
[393713591,1762942249228,-500.0,0.00017973,2]
[393713592,1762942249234,-500.0,0.00017973,2]
[393713593,1762942249241,-500.0,0.00017973,2]
[393713594,1762942249249,-500.0,0.00017973,2]
[393713595,1762942249258,-500.0,0.00017973,2]
[393713596,1762942249268,-500.0,0.00017973,2]
[393713597,1762942249277,-161.77592953,0.00017973,2]
[393713598,1762942249286,-500.0,0.00017973,2]
[393713599,1762942249295,-500.0,0.00017973,2]
[393713600,1762942249304,-513.24195534,0.00017973,2]
[393713601,1762942249313,-500.0,0.00017973,2]
[393713602,1762942249323,-500.0,0.00017973,2]
[393713603,1762942249332,-500.0,0.00017973,2]
[393713604,1762942249341,-500.0,0.00017973,2]
[393713605,1762942249351,-500.43125913,0.00017973,2]
[393713606,1762942249361,-500.0,0.00017973,2]
[393713607,1762942249371,-500.0,0.00017973,2]
[393713608,1762942249380,-500.0,0.00017973,2]
[393713609,1762942249389,-500.0,0.00017973,2]
[393713610,1762942249398,-500.0,0.00017973,2]
[393713611,1762942249407,-339.9148566,0.00017973,2]
[393713612,1762942249417,-500.0,0.00017973,2]
[393713613,1762942249427,-500.0,0.00017973,2]
[393713614,1762942249437,-500.98849457,0.00017973,2]
[393713615,1762942249446,-500.93773478,0.00017973,2]
[393713616,1762942249455,-500.0,0.00017973,2]
[393713617,1762942249464,-500.0,0.00017973,2]
[393713618,1762942249473,-500.0,0.00017973,2]
[393713619,1762942249483,-531.16868694,0.00017973,2]
[393713620,1762942249492,-500.0,0.00017973,2]
[393713621,1762942249501,-500.0,0.00017973,2]
[393713622,1762942249511,-500.0,0.00017973,2]
[393713623,1762942249520,-2309.00497295,0.0001799,2]
[393713624,1762942249529,-32620.58571105,0.00018,2]
[393713625,1762942249538,-9677.01193821,0.00018,2]
[393713626,1762942249547,-25091.01696236,0.00018,2]
[393713627,1762942249556,-584.91683742,0.00018116,2]
[393713628,1762942249565,-3000.0,0.00018179,2]
[393713629,1762942249574,-4446.05810597,0.00018234,2]
[393713630,1762942249583,-2000.0,0.00018248,2]